bitfinex-derivatives/quotes_ETHF0:USTF0_20250502
["timestamp","ask_amount","ask_price","bid_price","bid_amount"]
[1746202148874,2.72976,1856.6,1856.5,1.7457]
[1746202149076,1.07691,1856.5,1856.4,3.2078]
[1746202149276,2.72981,1856.5,1856.4,3.2078]
[1746202149882,2.72981,1856.5,1856.3,1.07699]
[1746202150078,2.72981,1856.5,1856.4,29.27139841]
[1746202150381,5.468,1856.8,1856.6,1.07686]
[1746202150577,5.468,1856.8,1856.7,31.01692841]
[1746202151078,11.83764,1856.8,1856.7,18.63540837]
[1746202151275,9.164,1856.8,1856.7,30.86952841]
[1746202152173,1.07667,1857.0,1856.9,1.07668]
[1746202152380,1.07662,1857.0,1856.9,28.19442841]
[1746202152580,4.28832,1857.1,1856.7,5.88285]
[1746202152882,1.07674,1856.8,1856.7,5.88287]
[1746202153082,1.07674,1856.8,1856.7,5.8829]
[1746202153282,1.07672,1856.9,1856.8,1.07673]
[1746202153583,1.07672,1856.9,1856.8,29.27116841]
[1746202154179,1.5969,1857.0,1856.7,3.2078]
[1746202154375,1.07672,1856.9,1856.8,29.27114841]
[1746202154580,1.07667,1857.0,1856.9,29.27110841]
[1746202154778,1.07667,1857.0,1856.9,29.94022841]
[1746202155179,1.07657,1857.1,1857.0,1.07659]
[1746202155482,6.98659591,1857.3,1857.0,1.7458]
[1746202155686,6.98659591,1857.3,1857.2,28.19442841]
[1746202155979,5.32849591,1857.3,1857.2,32.47873841]
[1746202156188,6.40494591,1857.3,1857.2,29.27093841]
[1746202156486,5.32849591,1857.3,1857.2,29.27093841]
[1746202156686,6.40494591,1857.3,1857.2,31.01673841]
[1746202156987,6.40494591,1857.3,1857.2,29.94022841]
[1746202157184,8.34284591,1857.3,1857.2,20.38120837]
[1746202157686,1.07651,1857.2,1857.1,41.87655]
[1746202157892,3.01441,1857.2,1857.1,53.38427004]
[1746202158085,1.9379,1857.2,1857.1,31.21967841]
[1746202158483,1.07648,1857.3,1857.2,1.07647]
[1746202158683,1.07648,1857.3,1857.2,31.21963841]
[1746202158986,1.07648,1857.3,1857.2,30.14312841]
[1746202159186,1.07648,1857.3,1857.2,31.21963841]
[1746202159487,1.0765,1857.3,1857.0,44.0078]
[1746202159687,3.01441,1857.2,1857.1,28.19442841]
[1746202159981,1.9379,1857.2,1857.0,4.28441]
[1746202160187,5.6339,1857.2,1857.0,3.2078]
[1746202160387,1.07657,1857.1,1857.0,3.2078]
[1746202160588,1.9956,1857.1,1857.0,4.28442]
[1746202160980,3.696,1857.2,1857.1,1.07657]
[1746202161182,1.07646,1857.3,1857.1,30.01672841]
[1746202161378,1.9956,1857.3,1857.2,31.09320841]
[1746202161582,3.58370466,1857.5,1857.2,34.30099841]
[1746202161781,8.40048591,1857.4,1857.3,28.19442841]
[1746202161986,8.40048591,1857.4,1857.3,29.27087841]
[1746202162185,12.09648591,1857.4,1857.3,29.27087841]
[1746202162492,11.02009591,1857.4,1857.3,28.19442841]
[1746202162692,12.09648591,1857.4,1857.3,28.19442841]
[1746202163081,11.02009591,1857.4,1857.3,29.27087841]
[1746202163789,12.09648591,1857.4,1857.3,28.19442841]
[1746202163986,1.07645,1857.3,1857.2,2.89881]
[1746202164190,2.92335,1857.3,1857.2,31.09323841]
[1746202164393,1.07657,1857.1,1857.0,3.2078]
[1746202164694,1.07657,1857.1,1857.0,6.22302]
[1746202164895,1.07657,1857.1,1857.0,34.41744841]
[1746202165193,1.07657,1857.1,1857.0,33.34082841]
[1746202165395,1.07665,1857.0,1856.9,3.2078]
[1746202165591,1.07661,1857.1,1857.0,19.71202837]
[1746202165794,1.07661,1857.1,1857.0,29.27104841]
[1746202166090,2.92346,1857.2,1857.1,1.07657]
[1746202166396,1.8469,1857.2,1857.1,31.16469841]
[1746202166594,5.89881,1857.4,1857.1,30.08812841]
[1746202166795,1.07645,1857.3,1857.2,31.16463841]
[1746202167196,1.07645,1857.3,1857.2,30.08812841]
[1746202167697,3.00925,1857.3,1857.2,30.08812841]
[1746202168397,1.07668,1856.9,1856.8,43.40602]
[1746202168599,1.07668,1856.9,1856.8,1.5293]
[1746202168801,1.07668,1856.9,1856.8,29.72372841]
[1746202169000,1.07668,1856.9,1856.8,18.63540837]
[1746202169194,6.38772,1856.9,1856.5,3.2078]
[1746202169394,4.77268,1856.9,1856.8,28.19442841]
[1746202169989,6.62658,1856.9,1856.8,28.19442841]
[1746202170808,1.0768,1856.7,1856.6,1.8689]
[1746202171103,1.07697,1856.4,1856.3,3.2078]
[1746202171294,1.07696,1856.5,1856.3,4.28483]
[1746202171498,1.07697,1856.4,1856.3,4.28483]
[1746202171703,6.388,1856.7,1856.5,28.19442841]
[1746202172003,4.7728,1856.7,1856.6,28.19442841]
[1746202172200,1.0768,1856.7,1856.6,28.19442841]
[1746202172399,3.58374979,1856.9,1856.6,28.19442841]
[1746202172593,4.66045979,1856.9,1856.8,28.19442841]
[1746202173200,4.66042979,1856.9,1856.8,32.47896841]
[1746202173407,3.58374979,1856.9,1856.8,37.47896841]
[1746202173702,3.58374979,1856.9,1856.8,32.47896841]
[1746202173898,1.07666,1857.0,1856.9,1.07668]
[1746202174093,1.07666,1857.0,1856.9,30.19982841]
[1746202175602,2.88996,1857.0,1856.9,30.19982841]
[1746202176100,1.07666,1857.0,1856.9,30.19982841]
[1746202176296,1.07666,1857.0,1856.9,31.27650841]
[1746202176510,1.07666,1857.0,1856.9,30.19982841]
[1746202177003,1.07662,1857.0,1856.9,31.27648841]
[1746202177209,1.07662,1857.0,1856.9,30.19982841]
[1746202178097,1.07661,1857.1,1857.0,1.07662]
[1746202178302,1.07661,1857.1,1857.0,1.8779]
[1746202178701,2.93491,1857.1,1857.0,1.8779]
[1746202179507,2.93491,1857.1,1857.0,31.14894841]
[1746202179808,1.07657,1857.1,1857.0,31.14890841]
[1746202180309,1.07657,1857.1,1857.0,1.8779]
[1746202180501,2.93487,1857.1,1857.0,1.8779]
[1746202180697,2.93487,1857.1,1857.0,2.95452]
[1746202180904,2.93487,1857.1,1857.0,30.07232841]
[1746202181208,6.51861979,1857.1,1857.0,30.07232841]
[1746202183202,3.58374979,1857.1,1857.0,34.35674841]
[1746202183604,4.66031979,1857.1,1857.0,34.35674841]
[1746202183999,4.66031979,1857.1,1857.0,30.07232841]
[1746202185009,3.58374979,1857.1,1857.0,34.35674841]
[1746202185410,1.07657,1857.1,1857.0,34.35674841]
[1746202185609,1.07657,1857.1,1857.0,31.14894841]
[1746202186210,1.07657,1857.1,1857.0,30.07232841]
[1746202186411,1.07657,1857.1,1857.0,31.14894841]
[1746202186804,1.07657,1857.1,1857.0,1.8779]
[1746202187003,1.07657,1857.1,1857.0,30.07232841]
[1746202187204,1.07657,1857.1,1857.0,31.14894841]
[1746202187811,1.07657,1857.1,1857.0,34.35674841]
[1746202188013,3.58374979,1857.2,1857.1,1.07657]
[1746202188212,4.66025979,1857.2,1857.1,29.27099841]
[1746202188413,3.58374979,1857.2,1857.1,29.27099841]
[1746202188912,6.40499591,1857.3,1857.1,29.27099841]
[1746202188913,3.29241613,1857.3,1857.2,29.27093841]
[1746202189105,3.29241613,1857.3,1857.2,38.32413841]
[1746202189306,10.49975241,1857.8,1857.7,1.07622]
[1746202189506,10.49975241,1857.9,1857.8,1.07616]
[1746202189706,11.57585241,1857.9,1857.8,44.02556]
[1746202189911,10.49975241,1857.9,1857.8,63.47019474]
[1746202190413,11.57585241,1857.9,1857.8,63.47019474]
[1746202190609,10.49975241,1857.9,1857.8,63.47019474]
[1746202191907,10.49975241,1857.9,1857.8,68.47019474]
[1746202192908,9.30692241,1857.9,1857.8,68.47019474]
[1746202193209,12.32414252,1858.0,1857.9,1.0761]
[1746202193405,6.87035252,1858.0,1857.9,27.82303474]
[1746202193604,14.04673246,1858.1,1858.0,1.07604]
[1746202193812,14.04673246,1858.1,1858.0,68.41867474]
[1746202194012,0.03104,1858.1,1858.0,63.41867474]
[1746202194309,0.03104,1858.1,1858.0,67.11467474]
[1746202195211,0.03104,1858.1,1858.0,63.41867474]
[1746202195817,1.07584,1858.4,1858.3,1.07587]
[1746202196016,1.07574,1858.6,1858.5,1.07572]
[1746202196214,1.07574,1858.6,1858.5,19.71112837]
[1746202196417,1.07574,1858.6,1858.5,1.07572]
[1746202196714,1.07574,1858.6,1858.5,3.17371]
[1746202196715,1.0757,1858.6,1858.5,3.17371]
[1746202196914,1.0757,1858.6,1858.5,2.098]
[1746202197614,1.0757,1858.6,1858.5,21.80915837]
[1746202197815,3.06077,1858.7,1858.6,1.0757]
[1746202198010,3.06074,1858.7,1858.6,20.52033474]
[1746202198211,3.06074,1858.7,1858.6,1.0757]
[1746202198406,3.06074,1858.7,1858.6,19.71110837]
[1746202198608,1.07564,1858.7,1858.6,19.71110837]
[1746202199718,3.11336,1858.9,1858.8,1.07558]
[1746202199909,3.11336,1858.9,1858.8,20.52021474]
[1746202200106,0.02712,1859.1,1858.9,1.07547]
[1746202200415,0.02712,1859.1,1859.0,22.69640474]
[1746202200613,0.02712,1859.1,1859.0,63.49640474]
[1746202201008,0.02712,1859.1,1858.9,3.2078]
[1746202201009,1.0755,1859.0,1858.9,1.0755]
[1746202201208,3.14838,1859.1,1858.9,1.0755]
[1746202201414,3.14838,1859.1,1859.0,19.44463474]
[1746202201808,1.07547,1859.0,1858.9,44.0078]
[1746202202005,3.12127,1859.0,1858.9,40.8]
[1746202202209,1.07564,1858.7,1858.6,4.28347]
[1746202202410,2.68889,1858.9,1858.5,2.1763]
[1746202202612,2.0458,1858.8,1858.5,21.88740837]
[1746202202917,3.12142,1858.8,1858.6,1.0757]
[1746202203108,1.07564,1858.7,1858.6,1.07565]
[1746202203308,2.0508,1858.7,1858.6,1.88487637]
[1746202203513,1.07564,1858.7,1858.6,19.44463474]
[1746202203716,3.696,1858.8,1858.7,1.07564]
[1746202203912,3.696,1858.8,1858.7,20.52027474]
[1746202204111,3.12638,1858.9,1858.7,20.52027474]
[1746202204314,2.0508,1858.9,1858.8,22.50251474]
[1746202204512,1.10257,1859.1,1859.0,1.07547]
[1746202204715,1.10253,1859.1,1859.0,19.44463474]
[1746202205113,1.10253,1859.1,1859.0,22.50240474]
[1746202205418,0.02712,1859.1,1859.0,22.50240474]
[1746202205607,1.10253,1859.1,1859.0,21.42693474]
[1746202205813,3.15333,1859.1,1859.0,21.42693474]
[1746202206012,3.15333,1859.1,1859.0,19.44463474]
[1746202206413,1.07547,1859.0,1858.9,3.11382]
[1746202206621,0.02712,1859.1,1859.0,20.52010474]
[1746202206820,0.02712,1859.1,1859.0,24.62500474]
[1746202208114,0.02712,1859.1,1859.0,29.62500474]
[1746202209118,1.0751,1859.7,1859.3,2.68821]
[1746202209319,1.07517,1859.6,1859.5,0.80922637]
[1746202209517,3.23781,1859.7,1859.6,19.71052837]
[1746202209713,3.2078,1859.9,1859.7,1.07504]
[1746202210018,1.07495,1859.9,1859.8,19.71040837]
[1746202210219,3.23763,1860.0,1859.9,1.07495]
[1746202210419,3.23763,1860.0,1859.9,22.70398474]
[1746202211017,3.23763,1860.0,1859.9,21.62903474]
[1746202211717,2.1627,1860.0,1859.9,22.70398474]
[1746202212219,1.07487,1860.1,1860.0,1.07489]
[1746202212415,1.07487,1860.1,1860.0,21.48753474]
[1746202212611,3.15797,1860.1,1860.0,20.67830837]
[1746202213222,3.15797,1860.1,1860.0,21.75319837]
[1746202213411,2.0831,1860.1,1860.0,21.75319837]
[1746202213611,3.15793,1860.1,1860.0,21.75319837]
[1746202214024,3.15793,1860.1,1860.0,20.67830837]
[1746202214527,3.15793,1860.1,1860.0,21.75319837]
[1746202215025,2.0831,1860.1,1860.0,21.75319837]
[1746202215220,1.07482,1860.2,1860.0,21.48753474]
[1746202215221,1.07483,1860.2,1860.0,21.48753474]
[1746202215422,1.07483,1860.2,1860.1,19.44463474]
[1746202215619,1.07483,1860.2,1860.0,18.63540837]
[1746202215824,1.07492,1860.0,1859.9,1.07494]
[1746202216118,3.2078,1860.4,1860.0,19.44463474]
[1746202216322,1.0748,1860.2,1860.1,1.07482]
[1746202216625,10.89449,1860.4,1860.0,20.51948474]
[1746202216819,1.07483,1860.1,1860.0,20.51948474]
[1746202217125,1.07482,1860.2,1860.0,20.51948474]
[1746202217316,1.07483,1860.1,1860.0,20.51948474]
[1746202217714,1.07482,1860.2,1860.0,19.44463474]
[1746202218026,8.2078,1860.4,1860.3,18.63540837]
[1746202218027,1.0747,1860.4,1860.3,18.63540837]
[1746202218227,1.0747,1860.4,1860.3,19.44463474]
[1746202219118,2.0393,1860.6,1860.5,1.0746]
[1746202219425,1.07456,1860.6,1860.5,19.44463474]
[1746202220121,1.07456,1860.6,1860.5,22.65243474]
[1746202220322,1.07456,1860.6,1860.5,19.44463474]
[1746202221123,5.0,1861.0,1860.5,27.65243474]
[1746202221319,4.3292,1861.2,1860.9,19.44463474]
[1746202221530,5.40341,1861.2,1860.9,20.51899474]
[1746202221725,4.3292,1861.2,1860.9,20.51899474]
[1746202222024,5.40342,1861.2,1860.9,20.51898474]
[1746202222229,4.3292,1861.2,1861.0,1.07431]
[1746202222628,4.3292,1861.2,1860.8,4.77133]
[1746202222820,4.3292,1861.2,1861.1,1.07425]
[1746202223020,1.07445,1860.8,1860.3,8.94040256]
[1746202223326,3.2078,1861.0,1860.7,20.51909474]
[1746202223517,1.07438,1860.9,1860.7,19.70986837]
[1746202223720,1.07438,1860.9,1860.7,1.07446]
[1746202224219,3.696,1860.9,1860.6,2.0853]
[1746202224422,1.07444,1860.8,1860.7,19.44463474]
[1746202224728,1.07444,1860.8,1860.7,19.17591867]
[1746202224917,1.07495,1859.9,1859.8,0.02]
[1746202225122,1.0749,1860.0,1859.7,1.07506]
[1746202225317,1.07495,1859.9,1859.8,10.23243867]
[1746202225517,2.68737,1859.9,1859.2,3.2078]
[1746202225728,1.07521,1859.5,1859.4,10.23243867]
[1746202225930,1.07523,1859.4,1859.3,10.23243867]
[1746202226135,3.2078,1859.7,1859.3,10.23243867]
[1746202226428,1.07528,1859.4,1859.2,2.0695]
[1746202226624,1.07541,1859.1,1859.0,3.2078]
[1746202226820,1.07538,1859.2,1859.0,3.2078]
[1746202227027,1.07541,1859.1,1859.0,3.2078]
[1746202227228,4.999,1859.4,1859.0,3.2078]
[1746202227427,1.07536,1859.2,1859.0,3.2078]
[1746202227628,1.07541,1859.1,1859.0,3.2078]
[1746202227829,1.07541,1859.1,1858.8,4.28334]
[1746202228031,1.07541,1859.1,1859.0,10.23243867]
[1746202228229,6.9038,1859.1,1858.6,3.2078]
[1746202228532,1.07564,1858.7,1858.5,2.0007]
[1746202228829,1.07565,1858.7,1858.5,15.44093867]
[1746202229222,7.68771,1859.0,1858.5,15.44093867]
[1746202229427,4.999,1859.0,1858.5,15.44093867]
[1746202229934,3.2078,1859.1,1858.7,10.23243867]
[1746202230235,4.28326,1859.1,1859.0,10.23243867]
[1746202230527,1.07547,1859.0,1858.9,10.23243867]
[1746202230726,1.07547,1859.0,1858.9,2.2011]
[1746202230931,1.07543,1859.1,1858.9,12.43353867]
[1746202231332,1.07547,1859.0,1858.9,12.43353867]
[1746202231526,1.07547,1859.0,1858.9,10.23243867]
[1746202231726,1.07556,1858.9,1858.7,3.27673]
[1746202231928,1.07549,1859.0,1858.8,10.23243867]
[1746202232129,1.07552,1858.9,1858.7,3.27672]
[1746202232324,1.07552,1858.9,1858.8,40.8]
[1746202232537,1.07552,1858.9,1858.8,51.03243867]
[1746202233122,1.07552,1858.9,1858.8,10.23243867]
[1746202233531,3.2078,1858.9,1858.5,2.2079]
[1746202233723,1.07576,1858.5,1858.3,4.28364]
[1746202233928,1.07576,1858.5,1858.4,2.2079]
[1746202234128,3.2078,1858.7,1858.2,2.1111]
[1746202234423,3.2078,1858.7,1858.3,10.23243867]
[1746202234424,1.07579,1858.5,1858.3,10.23243867]
[1746202234627,3.2078,1858.7,1858.3,10.23243867]
[1746202234828,3.2078,1858.7,1858.2,45.119]
[1746202235136,1.07581,1858.4,1858.3,10.23243867]
[1746202235435,1.07579,1858.5,1858.3,10.23243867]
[1746202235633,2.032,1858.4,1858.3,10.23243867]
[1746202236033,2.032,1858.4,1858.3,11.30830867]
[1746202236342,4.28347,1858.7,1858.4,1.07579]
[1746202236537,2.1704,1858.6,1858.5,10.23243867]
[1746202236838,2.1704,1858.6,1858.5,12.26023867]
[1746202237134,1.07576,1858.5,1858.2,42.9111]
[1746202237334,1.07576,1858.5,1858.3,10.23243867]
[1746202237537,2.1704,1858.4,1858.3,10.23243867]
[1746202238141,2.1704,1858.4,1858.3,11.30830867]
[1746202238330,2.1704,1858.4,1858.3,10.23243867]
[1746202238529,2.1704,1858.4,1858.3,11.30830867]
[1746202238730,1.07587,1858.3,1858.2,4.1389]
[1746202238938,2.1704,1858.3,1858.2,13.33616867]
[1746202239139,1.07572,1858.6,1858.2,12.26023867]
[1746202239340,3.24952,1858.6,1858.4,11.30822867]
[1746202239536,3.2078,1858.7,1858.5,12.32753867]
[1746202239837,1.07567,1858.7,1858.5,13.40327867]
[1746202240026,3.24942,1858.8,1858.6,1.07568]
[1746202240230,1.07554,1858.9,1858.7,12.32753867]
[1746202240431,3.2493,1859.0,1858.8,11.30799867]
[1746202240632,2.1738,1859.0,1858.9,11.30795867]
[1746202241133,4.28316,1859.2,1858.9,10.23243867]
[1746202241330,3.2078,1859.2,1859.1,11.30784867]
[1746202241532,4.28315,1859.2,1859.1,10.23243867]
[1746202241839,2.1738,1859.3,1859.0,2.0951]
[1746202242136,1.0754,1859.2,1859.1,10.23243867]
[1746202242334,1.07547,1859.0,1858.9,3.2078]
[1746202242539,3.21694,1859.1,1859.0,10.23243867]
[1746202242740,3.21694,1859.1,1859.0,12.31693867]
[1746202242942,1.0754,1859.2,1859.0,3.15993]
[1746202243137,3.2169,1859.2,1859.1,11.30784867]
[1746202243336,6.9129,1859.2,1859.1,11.30784867]
[1746202243537,3.696,1859.2,1859.1,11.30784867]
[1746202244133,3.21669,1859.5,1859.1,12.92095867]
[1746202244338,3.21669,1859.5,1859.3,11.30767867]
[1746202244544,3.21669,1859.5,1859.4,2.0845]
[1746202244743,53.78905,1859.8,1859.4,13.39216867]
[1746202244939,3.21659,1859.7,1859.5,10.23243867]
[1746202245140,2.1415,1859.7,1859.6,13.39205867]
[1746202245340,1.07506,1859.7,1859.6,13.39205867]
[1746202245641,2.68766,1859.7,1859.3,4.28307]
[1746202245839,3.25442,1859.6,1859.4,3.17141]
[1746202246030,1.07518,1859.5,1859.4,2.0962]
[1746202246231,1.07518,1859.5,1859.4,51.03243867]
[1746202246541,1.07533,1859.3,1859.2,1.07535]
[1746202246931,2.1793,1859.5,1859.2,11.30773867]
[1746202247134,3.25448,1859.5,1859.4,10.23243867]
[1746202247332,3.2078,1859.6,1859.3,2.0962]
[1746202247637,1.07518,1859.5,1859.4,11.30765867]
[1746202247840,3.2078,1859.6,1859.5,1.07518]
[1746202248136,4.28292,1859.6,1859.5,12.32863867]
[1746202248536,4.28292,1859.6,1859.5,2.0962]
[1746202248939,1.07527,1859.4,1859.1,2.1651]
[1746202249238,3.2078,1859.6,1859.1,2.1651]
[1746202249239,4.28296,1859.6,1859.5,10.23243867]
[1746202249744,1.07529,1859.3,1859.2,3.2078]
[1746202249944,1.07527,1859.4,1859.3,11.30772867]
[1746202250138,1.07527,1859.4,1859.3,1.07529]
[1746202250335,2.0782,1859.5,1859.1,4.83374]
[1746202250540,1.07523,1859.4,1859.3,10.23243867]
[1746202252153,3.2078,1859.6,1859.5,1.07518]
[1746202252446,4.28292,1859.6,1859.5,10.23243867]
[1746202252646,1.07518,1859.5,1859.4,2.0414]
[1746202253348,3.30178,1859.5,1859.4,2.0414]
[1746202254351,2.2266,1859.5,1859.2,3.307]
[1746202254652,1.07529,1859.3,1859.2,12.26193867]
[1746202255144,13.6215,1859.3,1858.9,5.2557]
[1746202255452,8.6215,1859.3,1858.9,17.51763867]
[1746202255843,1.07547,1859.0,1858.9,17.51763867]
[1746202256650,1.07547,1859.0,1858.9,18.59315867]
[1746202257043,1.07547,1859.0,1858.9,17.51763867]
[1746202257749,1.07547,1859.0,1858.9,4.0774]
[1746202257947,1.07564,1858.7,1858.6,4.28348]
[1746202258450,1.07564,1858.7,1858.6,13.44023867]
[1746202258751,1.07564,1858.7,1858.6,14.51593867]
[1746202259453,1.07561,1858.8,1858.6,13.44023867]
[1746202259753,3.28368,1858.9,1858.8,10.23243867]
[1746202261350,5.89621,1859.2,1858.8,10.23243867]
[1746202261541,1.07541,1859.1,1859.0,10.23243867]
[1746202262154,1.07541,1859.1,1859.0,12.33553867]
[1746202262540,1.0754,1859.2,1859.0,12.33553867]
[1746202262847,2.0285,1859.3,1859.1,11.30784867]
[1746202263044,3.2078,1859.7,1859.5,1.07518]
[1746202263249,4.28286,1859.7,1859.6,2.1031]
[1746202263451,3.10362,1859.6,1859.5,10.23243867]
[1746202264353,1.07512,1859.6,1859.5,10.23243867]
[1746202264553,4.28287,1859.7,1859.5,13.39659867]
[1746202264747,6.40891386,1859.9,1859.6,10.23243867]
[1746202264957,6.40888386,1859.9,1859.8,10.23243867]
[1746202265452,1.075,1859.8,1859.7,2.089]
[1746202265955,1.075,1859.8,1859.7,12.32143867]
[1746202266570,9.61669386,1859.9,1859.7,13.39644867]
[1746202266751,1.07496,1859.9,1859.8,10.23243867]
[1746202267263,1.07496,1859.9,1859.7,3.16403]
[1746202267454,1.07496,1859.9,1859.8,10.23243867]
[1746202267654,1.07497,1859.9,1859.7,2.089]
[1746202267953,1.07497,1859.9,1859.8,10.23243867]
[1746202268151,4.77097,1859.9,1859.8,10.23243867]
[1746202268354,1.075,1859.8,1859.7,2.089]
[1746202268657,1.07512,1859.6,1859.5,6.35205]
[1746202268861,1.07512,1859.6,1859.5,3.2078]
[1746202269164,1.07512,1859.6,1859.5,13.44023867]
[1746202269356,7.6878,1859.6,1859.2,2.0353]
[1746202269553,1.07527,1859.4,1859.3,10.23243867]
[1746202269753,2.6878,1859.6,1859.0,3.2078]
[1746202269754,1.07531,1859.3,1859.0,3.2078]
[1746202269949,1.07526,1859.4,1859.2,10.23243867]
[1746202270155,1.07523,1859.4,1859.3,11.30769867]
[1746202270355,1.07523,1859.4,1859.3,10.23243867]
[1746202270650,1.07529,1859.3,1859.2,1.0753]
[1746202270857,3.29345,1859.4,1859.3,11.30772867]
[1746202271160,5.9142,1859.4,1859.3,11.30772867]
[1746202271357,3.696,1859.4,1859.3,11.30772867]
[1746202271560,4.77123,1859.4,1859.3,10.23243867]
[1746202271762,6.98943,1859.4,1859.3,11.30772867]
[1746202272061,5.9142,1859.4,1859.3,11.30772867]
[1746202272253,4.28288,1859.7,1859.6,1.07512]
[1746202272452,4.28288,1859.7,1859.6,11.30755867]
[1746202272652,4.28271,1860.0,1859.6,13.99534867]
[1746202272862,3.15488,1860.1,1859.9,11.30738867]
[1746202273057,5.33393386,1860.4,1860.0,13.44023867]
[1746202273355,5.33393386,1860.4,1860.3,11.30714867]
[1746202274153,2.04483386,1860.4,1860.3,19.51494867]
[1746202274354,1.07444,1860.8,1860.3,21.12697867]
[1746202274550,1.07444,1860.8,1860.7,10.23243867]
[1746202274762,1.07444,1860.8,1860.7,11.30691867]
[1746202274964,15.94391239,1860.9,1860.7,10.23243867]
[1746202275265,1.07443,1860.8,1860.7,10.23243867]
[1746202275561,1.07443,1860.8,1860.7,11.30687867]
[1746202275762,1.07443,1860.8,1860.7,10.23243867]
[1746202276761,17.01829239,1860.9,1860.7,11.30691867]
[1746202277063,1.07443,1860.8,1860.7,10.23243867]
[1746202277564,13.81051239,1860.9,1860.7,11.30690867]
[1746202277762,1.07443,1860.8,1860.7,10.23243867]
[1746202278462,12.73611239,1860.9,1860.7,10.23243867]
[1746202278663,10.65611239,1860.9,1860.8,11.30686867]
[1746202278859,1.07434,1861.0,1860.8,11.30686867]
[1746202279159,1.07434,1861.0,1860.9,10.23243867]
[1746202279363,3.23314,1861.0,1860.9,10.23243867]
[1746202279560,3.23316,1861.0,1860.8,1.07443]
[1746202279763,3.23316,1861.0,1860.9,10.23243867]
[1746202280063,1.07431,1861.0,1860.9,10.23243867]
[1746202280259,3.23309,1861.1,1860.9,10.23243867]
[1746202280463,3.23309,1861.1,1861.0,10.23243867]
[1746202280665,2.1588,1861.1,1861.0,11.30674867]
[1746202280967,1.07419,1861.2,1861.0,11.30670867]
[1746202281162,3.23296,1861.3,1861.1,11.30668867]
[1746202281358,2.1588,1861.3,1861.2,11.30662867]
[1746202281553,1.07412,1861.4,1861.2,11.30662867]
[1746202281761,13.15725482,1861.7,1861.5,10.23243867]
[1746202282061,7.12531482,1861.7,1861.6,11.30639867]
[1746202282263,7.12531482,1861.7,1861.6,52.10639867]
[1746202282457,6.85659875,1861.7,1861.6,57.10639867]
[1746202282959,6.85659875,1861.7,1861.6,52.10639867]
[1746202283155,1.07388,1861.8,1861.7,1.07391]
[1746202283359,1.07388,1861.8,1861.7,10.23243867]
[1746202284160,1.07391,1861.7,1861.6,40.8]
[1746202284367,3.2078,1861.8,1861.3,2.1104]
[1746202284561,1.07391,1861.7,1861.6,10.23243867]
[1746202284761,3.2078,1862.0,1861.8,10.23243867]
[1746202284966,1.07373,1862.0,1861.9,11.30621867]
[1746202285167,1.07373,1862.0,1861.9,10.23243867]
[1746202285367,2.1271,1862.1,1861.9,10.23243867]
[1746202285569,12.11444353,1862.2,1862.0,10.23243867]
[1746202285763,8.90664353,1862.2,1862.1,14.51391867]
[1746202286165,8.90664353,1862.2,1862.1,24.46991867]
[1746202286370,8.90664353,1862.2,1862.1,14.51391867]
[1746202286565,8.90664353,1862.2,1862.1,16.57811867]
[1746202286769,8.90664353,1862.2,1862.1,18.57361867]
[1746202288071,8.90664353,1862.2,1862.1,23.57361867]
[1746202288470,3.09277,1862.7,1862.2,2.68394]
[1746202288665,2.0194,1862.7,1862.4,1.07346]
[1746202288871,1.07339,1862.6,1862.5,13.32407867]
[1746202289268,1.07339,1862.6,1862.5,12.25063867]
[1746202289469,2.68351,1862.6,1862.2,1.07358]
[1746202289672,1.07353,1862.4,1862.3,1.07355]
[1746202289969,1.07362,1862.2,1862.1,9.1238]
[1746202290269,1.07362,1862.2,1862.1,10.23243867]
[1746202291363,6.07362,1862.2,1862.1,10.23243867]
[1746202291568,1.07377,1862.0,1861.8,1.07379]
[1746202291772,1.07377,1862.0,1861.9,10.23243867]
[1746202292274,1.07377,1862.0,1861.9,1.07379]
[1746202292471,1.07385,1861.8,1861.7,6.98989]
[1746202292772,3.05563,1861.9,1861.8,1.07385]
[1746202292964,1.9818,1861.9,1861.7,3.22697]
[1746202293170,1.07385,1861.8,1861.7,12.38553867]
[1746202293375,1.9818,1861.9,1861.6,3.2078]
[1746202293570,1.07391,1861.7,1861.6,13.44023867]
[1746202293878,1.07391,1861.7,1861.6,14.51418867]
[1746202294074,1.07391,1861.7,1861.6,16.53628867]
[1746202294778,1.07391,1861.7,1861.6,12.25453867]
[1746202294974,1.07391,1861.7,1861.6,13.32849867]
[1746202295178,1.07391,1861.7,1861.6,12.25453867]
[1746202295477,3.05561,1861.9,1861.7,1.07389]
[1746202295679,3.05561,1861.9,1861.8,13.44023867]
[1746202295972,3.05561,1861.9,1861.8,10.23243867]
[1746202296276,12.87421,1861.9,1861.5,1.07401]
[1746202296477,1.07394,1861.7,1861.6,10.23243867]
[1746202296876,1.07396,1861.6,1861.5,2.0221]
[1746202297180,1.07408,1861.4,1861.3,9.1238]
[1746202297480,1.07399,1861.6,1861.5,10.23243867]
[1746202297771,8.1298,1862.1,1861.6,1.07396]
[1746202298076,4.28152,1862.1,1862.0,1.07373]
[1746202298378,4.3035,1862.5,1862.1,1.07368]
[1746202298379,1.07365,1862.2,1862.1,1.07368]
[1746202298579,3.12521,1862.3,1862.2,10.23243867]
[1746202298880,3.12521,1862.3,1862.2,11.30605867]
[1746202299177,1.07347,1862.5,1862.2,13.44023867]
[1746202299377,1.07347,1862.5,1862.4,13.44023867]
[1746202299579,1.07347,1862.5,1862.4,10.23243867]
[1746202299770,8.1298,1862.9,1862.4,10.23243867]
[1746202299771,10.81294,1862.9,1862.4,10.23243867]
[1746202299978,2.68339,1862.7,1862.0,8.60034]
[1746202300173,1.07355,1862.4,1862.3,10.23243867]
[1746202300379,1.0736,1862.3,1862.2,10.23243867]
[1746202300579,1.07366,1862.2,1862.1,10.23243867]
[1746202300878,1.07368,1862.1,1862.0,5.916]
[1746202301474,2.0082,1862.2,1862.0,5.916]
[1746202301681,1.07368,1862.1,1862.0,5.916]
[1746202302082,1.07368,1862.1,1861.8,3.25511]